fUSD/lending_fUSD_20240301
["ID","MTS","AMOUNT","RATE_DAILY","PERIOD"]
[315931755,1709289054808,-1247.33867596,0.0002244,2]
[315931756,1709289055706,-500.0,0.00021917,2]
[315931757,1709289055717,-500.0,0.00022191,2]
[315931758,1709289055726,-1640.036235,0.00022191,7]
[315931759,1709289055736,-9776.94345973,0.0002244,2]
[315931760,1709289055748,-333.1636501,0.0002244,2]
[315931761,1709289055778,-1640.036235,0.00022213,7]
[315931762,1709289055787,-1984.07369489,0.0002244,2]
[315931763,1709289055804,-404.59929506,0.0002244,2]
[315931764,1709289055822,-17521.93974027,0.0002244,2]
[315931765,1709289055834,-2903.53086429,0.0002244,2]
[315931766,1709289055867,-377.34566948,0.0002244,2]
[315931768,1709289549116,500.0,0.00025,120]
[315931769,1709289572157,1000.0,0.00022,30]
[315931770,1709289588791,408.22219881,0.0002,12]
[315931771,1709289683544,-1050.5593775,0.00017605,2]
[315931772,1709289683566,-1009.64255081,0.00017606,2]
[315931773,1709289683587,-329.60556228,0.00017608,2]
[315931774,1709289683609,-300.0,0.00017809,2]
[315931775,1709289683630,-150.0,0.00017809,2]
[315931776,1709289683654,-950.33,0.00017814,2]
[315931777,1709289683845,3351.57340589,0.00017604,2]
[315931778,1709289684750,5492.2922799,0.00017604,2]
[315931779,1709290038088,902.81,0.00016648,2]
[315931814,1709290232132,-570.31488001,0.00018172,2]
[315931815,1709290232144,-480.24449749,0.00018172,2]
[315931816,1709290232154,-206.0,0.00018173,2]
[315931817,1709290232163,-31.6346127,0.00018422,2]
[315931818,1709290232176,-218.3653873,0.00018422,2]
[315931819,1709290232185,-127.78145816,0.00018466,2]
[315931820,1709290232199,-1907.82876748,0.00018466,2]
[315931821,1709290232210,-474.22582832,0.00018466,2]
[315931822,1709290232247,-841.73735193,0.00018466,2]
[315931823,1709290232257,-178.11951268,0.00018468,2]
[315931824,1709290232266,-193.25,0.00018497,2]
[315931825,1709290232276,-200.0,0.00018539,2]
[315931826,1709290232285,-419.29,0.00018568,2]
[315931827,1709290232294,-180.0,0.00018588,2]
[315931828,1709290232304,-1469.94,0.00018604,2]
[315931829,1709290232314,-150.0,0.00018635,2]
[315931830,1709290232323,-1193.08,0.00018717,2]
[315931831,1709290232333,-210.24,0.00018789,10]
[315931832,1709290232343,-158.99,0.00018901,2]
[315931833,1709290232352,-50.91938012,0.00018901,2]
[315931834,1709290232368,-1610.90268497,0.00018901,2]
[315931835,1709290232459,-1060.50622757,0.00018901,2]
[315931836,1709290232484,-1500.41627688,0.00018901,2]
[315931837,1709290232496,-1708.80400085,0.00018901,2]
[315931838,1709290232512,-264.55,0.00018901,2]
[315931844,1709290234348,-2417.97506037,0.00018901,2]
[315931851,1709290237798,-648.5229323,0.00018901,2]
[315931852,1709290237811,-7071.08166604,0.00018901,2]
[315931853,1709290237823,-627.74580422,0.00018901,2]
[315931854,1709290237834,-11633.2072065,0.00018901,2]
[315931855,1709290237906,-784.20550947,0.00018901,2]
[315931856,1709290237918,-51765.10325071,0.00018901,2]
[315931857,1709290237928,-499.99,0.00018901,2]
[315931858,1709290237937,-392.24,0.00018901,2]
[315931859,1709290237950,-300.0,0.00018903,2]
[315931860,1709290237960,-150.0,0.00018903,2]
[315931861,1709290237969,-472.07,0.00018904,2]
[315931862,1709290237979,-4856.55870839,0.00018904,2]
[315931863,1709290237991,-730.05188774,0.00018904,2]
[315931864,1709290238003,-1007.38297438,0.00018904,2]
[315931865,1709290238015,-4422.33067648,0.00018904,2]
[315931866,1709290238093,-12883.67575301,0.00018904,2]
[315931867,1709290238103,-902.81,0.00018912,2]
[315931868,1709290238112,-2751.0,0.00018927,2]
[315931869,1709290238122,-158.6,0.00019025,2]
[315931870,1709290238131,-8739.64628831,0.00019055,2]
[315931871,1709290238234,-89.48371169,0.00019055,2]
[315931874,1709290238244,-500.0,0.00019178,2]
[315931876,1709290238253,-250.0,0.00019178,2]
[315931878,1709290238262,-250.0,0.00019178,2]
[315931880,1709290238271,-158.99,0.00019229,2]
[315931882,1709290238281,-278.66,0.00019252,2]
[315931884,1709290238290,-36327.67220132,0.00019458,2]
[315931886,1709290238299,-232.79498185,0.00019466,2]
[315931888,1709290238308,-222.4331067,0.00019467,2]
[315931890,1709290238318,-4273.21682323,0.00019467,2]
[315931892,1709290238326,-158.99,0.00019557,2]
[315931894,1709290238336,-2483.9247,0.000198,2]
[315931896,1709290238345,-224.3408,0.000198,2]
[315931898,1709290238354,-158.99,0.00019886,2]
[315931900,1709290238363,-225.02,0.00019911,2]
[315931902,1709290238372,-527.93,0.00019988,2]
[315931904,1709290238381,-454.34,0.0001999,2]
[315931906,1709290238391,-3459.40298977,0.00019998,2]
[315931908,1709290238400,-155.0,0.00019998,2]
[315931910,1709290238409,-465.84732855,0.00019998,7]
[315931912,1709290238418,-170.87521047,0.00019998,7]
[315931914,1709290238428,-210.69397997,0.00019999,2]
[315931916,1709290238437,-702.27838556,0.00019999,2]
[315931918,1709290238448,-612.22801672,0.0002,2]
[315931920,1709290238457,-350.0,0.0002,3]
[315931922,1709290238466,-21199.53802403,0.0002,3]
[315931924,1709290238475,-10521.45098273,0.0002,3]
[315931926,1709290238487,-574.98736815,0.0002,3]
[315931931,1709290238560,-424.88308538,0.0002,3]
[315931932,1709290238576,-6904.01120866,0.0002,3]
[315931933,1709290238587,-2659.11796431,0.0002,3]
[315932080,1709290242298,-115.0874148,0.0002,3]
[315932081,1709290242308,-4936.8193852,0.0002,3]
[315932082,1709290242320,-268.83023111,0.0002,3]
[315932083,1709290242350,-2031.05976472,0.0002,3]
[315932084,1709290242362,-8091.43316412,0.0002,3]
[315932085,1709290242378,-5871.39547888,0.0002,3]
[315932086,1709290242388,-21199.53802403,0.0002,3]
[315932087,1709290242397,-21199.53802403,0.0002,3]
[315932088,1709290242406,-21199.53802403,0.0002,3]
[315932089,1709290242416,-21199.53802403,0.0002,3]
[315932090,1709290242426,-21199.53802403,0.0002,3]
[315932091,1709290242436,-21199.53802403,0.0002,3]
[315932092,1709290242446,-21199.53702403,0.0002,3]
[315932093,1709290242455,-1028.48757506,0.0002,3]
[315932094,1709290242464,-170.03,0.00020171,2]
[315932095,1709290242474,-307.19,0.00020209,2]
[315932096,1709290242483,-193.25,0.00020347,2]
[315932097,1709290242493,-156.47,0.00020708,2]
[315932098,1709290242503,-4711.0,0.00020726,2]
[315932099,1709290242512,-210.0,0.00020794,2]
[315932100,1709290242522,-307.19,0.00020924,2]
[315932101,1709290242532,-206.0,0.00020961,5]
[315932102,1709290242542,-711.390726,0.00021,2]
[315932103,1709290242551,-664.49,0.00021096,2]
[315932104,1709290242561,-665.12,0.00021096,2]
[315932105,1709290242571,-902.81,0.00021176,2]
[315932106,1709290242581,-472.07,0.00021267,2]
[315932107,1709290242590,-1469.94,0.00021344,2]
[315932108,1709290242600,-5022.0,0.0002137,2]
[315932109,1709290242609,-250.186571,0.00021462,6]
[315932110,1709290242619,-250.186571,0.00021476,6]
[315932111,1709290242628,-250.186571,0.00021477,6]
[315932112,1709290242637,-250.186571,0.00021481,6]
[315932113,1709290242647,-920.07,0.00021482,2]
[315932114,1709290242656,-1834.13,0.00021482,2]
[315932116,1709290242665,-406.13,0.00021482,2]
[315932117,1709290242675,-920.07,0.00021482,2]
[315932118,1709290242685,-920.07,0.00021482,2]
[315932121,1709290242695,-920.07,0.00021482,2]
[315932124,1709290242705,-487.0,0.000215,2]
[315932126,1709290242714,-6344.0,0.000215,2]
[315932127,1709290242724,-172.87,0.00021541,2]
[315932128,1709290242733,-454.34,0.00021566,2]
[315932129,1709290242742,-200000.0,0.00021576,2]
[315932131,1709290242751,-307.19,0.00021639,2]
[315932132,1709290242761,-376.41,0.00021644,2]
[315932133,1709290242770,-835.7,0.00021644,2]
[315932134,1709290242780,-150.0,0.00021644,2]
[315932135,1709290242789,-151.06,0.00021644,2]
[315932136,1709290242798,-150.0,0.00021644,2]
[315932137,1709290242807,-424.53,0.00021644,2]
[315932138,1709290242817,-424.53,0.00021644,2]
[315932140,1709290242825,-424.53,0.00021644,2]
[315932141,1709290242835,-424.53,0.00021644,2]
[315932144,1709290242845,-424.53,0.00021644,2]
[315932146,1709290242855,-424.53,0.00021644,2]
[315932148,1709290242865,-424.53,0.00021644,2]
[315932150,1709290242875,-424.53,0.00021644,2]
[315932152,1709290242887,-515.34,0.00021644,2]
[315932153,1709290242897,-424.53,0.00021644,2]
[315932154,1709290242906,-515.34,0.00021644,2]
[315932155,1709290242915,-424.53,0.00021644,2]
[315932156,1709290242925,-424.53,0.00021644,2]
[315932157,1709290242935,-424.53,0.00021644,2]
[315932158,1709290242945,-150.0,0.00021678,2]
[315932159,1709290242956,-2837.13524477,0.00021717,2]
[315932160,1709290242967,-454.34,0.00021807,2]
[315932161,1709290242976,-55555.0,0.00021817,2]
[315932162,1709290242985,-1005.4846,0.00021899,2]
[315932163,1709290242995,-559.71015179,0.000219,2]
[315932164,1709290243004,-750.0,0.000219,2]
[315932165,1709290243014,-454.34,0.00021907,2]
[315932166,1709290243023,-454.34,0.00021907,2]
[315932167,1709290243033,-159.62738497,0.00021916,2]
[315932169,1709290243042,-65856.93482335,0.00021917,4]
[315932171,1709290243051,-500.95141509,0.00021917,20]
[315932173,1709290243061,-522.43302845,0.00021917,2]
[315932175,1709290243070,-500.0,0.00021917,2]
[315932177,1709290243080,-216.42011104,0.00021917,2]
[315932179,1709290243089,-518.81017699,0.00021917,2]
[315932181,1709290243099,-234.64062271,0.00021917,2]
[315932183,1709290243109,-500.0,0.00021917,2]
[315932185,1709290243119,-500.0,0.00021917,2]
[315932187,1709290243129,-500.0,0.00021917,2]
[315932189,1709290243139,-500.0,0.00021917,2]
[315932192,1709290243149,-584.45796721,0.00021917,2]
[315932194,1709290243159,-500.0,0.00021917,2]
[315932196,1709290243168,-500.0,0.00021917,2]
[315932198,1709290243178,-500.0,0.00021917,2]
[315932200,1709290243188,-500.0,0.00021917,2]
[315932202,1709290243199,-500.0,0.00021917,2]
[315932203,1709290243208,-500.0,0.00021917,2]
[315932205,1709290243218,-500.0,0.00021917,2]
[315932208,1709290243227,-500.0,0.00021917,2]
[315932210,1709290243236,-718.88,0.00021917,2]
[315932212,1709290243246,-1087.32,0.00021917,2]
[315932245,1709290243558,-500.0,0.00021917,2]
[315932247,1709290243568,-500.0,0.00021917,2]
[315932250,1709290243579,-500.0,0.00021917,2]
[315932252,1709290243588,-500.0,0.00021917,2]
[315932254,1709290243598,-1133.43,0.00021917,2]
[315932256,1709290243607,-500.0,0.00021917,2]
[315932258,1709290243616,-500.0,0.00021917,2]
[315932260,1709290243625,-505.52,0.00021917,2]
[315932262,1709290243634,-500.0,0.00021917,2]
[315932264,1709290243643,-500.0,0.00021917,2]
[315932266,1709290243653,-500.0,0.00021917,2]
[315932268,1709290243662,-500.0,0.00021917,2]
[315932270,1709290243671,-500.0,0.00021917,2]
[315932272,1709290243681,-523.6,0.00021917,2]
[315932274,1709290243690,-500.0,0.00021917,2]
[315932276,1709290243701,-500.0,0.00021917,2]
[315932278,1709290243710,-500.0,0.00021917,2]
[315932280,1709290243719,-500.0,0.00021917,2]
[315932282,1709290243727,-912.63,0.00021917,2]
[315932284,1709290243736,-500.0,0.00021917,2]
[315932286,1709290243746,-500.0,0.00021917,2]
[315932288,1709290243755,-500.0,0.00021917,2]
[315932290,1709290243764,-500.0,0.00021917,2]
[315932292,1709290243773,-500.0,0.00021917,2]
[315932294,1709290243782,-500.0,0.00021917,2]
[315932296,1709290243791,-561.12,0.00021917,2]
[315932298,1709290243800,-500.0,0.00021917,2]
[315932300,1709290243809,-460.7160859,0.00021917,2]
[315932302,1709290243819,-500.0,0.00021917,2]
[315932304,1709290243828,-500.0,0.00021917,2]
[315932306,1709290243837,-325.82,0.00021917,2]
[315932308,1709290243846,-500.0,0.00021917,2]
[315932310,1709290243856,-500.0,0.00021917,2]
[315932312,1709290243867,-500.0,0.00021917,2]
[315932314,1709290243877,-500.0,0.00021917,2]
[315932316,1709290243888,-500.0,0.00021917,2]
[315932318,1709290243897,-500.0,0.00021917,2]
[315932320,1709290243907,-599.88,0.00021917,2]
[315932322,1709290243916,-500.0,0.00021917,2]
[315932325,1709290243926,-500.0,0.00021917,2]
[315932327,1709290243936,-500.0,0.00021917,2]
[315932329,1709290243945,-500.0,0.00021917,2]
[315932331,1709290243957,-500.0,0.00021917,2]
[315932333,1709290243967,-500.0,0.00021917,2]
[315932334,1709290243976,-500.0,0.00021917,2]
[315932335,1709290243985,-500.0,0.00021917,2]
[315932336,1709290243994,-500.0,0.00021917,2]
[315932337,1709290244003,-500.0,0.00021917,2]
[315932338,1709290244013,-500.0,0.00021917,2]
[315932339,1709290244022,-500.0,0.00021917,2]
[315932340,1709290244031,-500.0,0.00021917,2]
[315932341,1709290244041,-500.0,0.00021917,2]
[315932342,1709290244050,-500.0,0.00021917,2]
[315932343,1709290244059,-694.44,0.00021917,2]
[315932345,1709290244068,-500.0,0.00021917,2]
[315932347,1709290244077,-500.0,0.00021917,2]
[315932349,1709290244086,-500.0,0.00021917,2]
[315932351,1709290244095,-500.0,0.00021917,2]
[315932353,1709290244105,-500.0,0.00021917,2]
[315932355,1709290244114,-667.59,0.00021917,2]
[315932357,1709290244124,-890.47,0.00021917,2]
[315932359,1709290244133,-500.0,0.00021917,2]
[315932361,1709290244142,-513.93,0.00021917,2]
[315932363,1709290244152,-500.0,0.00021917,2]
[315932365,1709290244161,-509.13406612,0.00021917,2]
[315932367,1709290244170,-511.37387649,0.00021917,2]
[315932369,1709290244179,-500.0,0.00021917,2]
[315932371,1709290244188,-711.63,0.00021917,2]
[315932373,1709290244198,-500.0,0.00021917,2]
[315932375,1709290244207,-500.0,0.00021917,2]
[315932377,1709290244216,-500.0,0.00021917,2]
[315932379,1709290244225,-500.0,0.00021917,2]
[315932381,1709290244234,-500.0,0.00021917,2]
[315932383,1709290244244,-500.0,0.00021917,2]
[315932386,1709290244253,-500.0,0.00021917,2]
[315932388,1709290244264,-500.0,0.00021917,2]
[315932390,1709290244273,-500.0,0.00021917,2]
[315932392,1709290244283,-660.37,0.00021917,2]
[315932394,1709290244292,-500.0,0.00021917,2]
[315932396,1709290244304,-566.72262848,0.00021917,2]
[315932398,1709290244313,-500.0,0.00021917,2]
[315932400,1709290244322,-500.0,0.00021917,2]
[315932402,1709290244334,-500.0,0.00021917,2]
[315932404,1709290244343,-510.34543487,0.00021917,2]
[315932406,1709290244352,-501.72,0.00021917,2]
[315932408,1709290244362,-500.0,0.00021917,2]
[315932410,1709290244371,-500.0,0.00021917,2]
[315932412,1709290244380,-510.66352939,0.00021917,2]
[315932414,1709290244389,-500.0,0.00021917,2]
[315932416,1709290244398,-500.0,0.00021917,2]
[315932418,1709290244407,-500.0,0.00021917,2]
[315932420,1709290244416,-500.0,0.00021917,2]
[315932422,1709290244425,-500.0,0.00021917,2]
[315932424,1709290244434,-500.0,0.00021917,2]
[315932426,1709290244444,-500.0,0.00021917,2]
[315932428,1709290244454,-565.56,0.00021917,2]
[315932430,1709290244464,-500.0,0.00021917,2]
[315932432,1709290244475,-500.0,0.00021917,2]
[315932434,1709290244485,-500.0,0.00021917,2]
[315932436,1709290244494,-500.0,0.00021917,2]
[315932438,1709290244504,-500.0,0.00021917,2]
[315932440,1709290244514,-500.0,0.00021917,2]
[315932442,1709290244523,-500.0,0.00021917,2]
[315932444,1709290244532,-500.0,0.00021917,2]
[315932446,1709290244542,-500.0,0.00021917,2]
[315932448,1709290244551,-500.0,0.00021917,2]
[315932451,1709290244560,-500.0,0.00021917,2]
[315932453,1709290244570,-402.49,0.00021917,2]
[315932455,1709290244579,-500.0,0.00021917,2]
[315932457,1709290244588,-618.79,0.00021917,2]
[315932459,1709290244597,-811.78,0.00021917,2]
[315932461,1709290244606,-565.39065989,0.00021917,2]
[315932463,1709290244615,-566.51,0.00021917,2]
[315932465,1709290244624,-500.0,0.00021917,2]
[315932467,1709290244633,-500.0,0.00021917,2]
[315932469,1709290244643,-500.0,0.00021917,2]
[315932471,1709290244652,-521.06,0.00021917,2]
[315932473,1709290244661,-500.0,0.00021917,2]
[315932475,1709290244670,-500.0,0.00021917,2]
[315932477,1709290244679,-500.0,0.00021917,2]
[315932479,1709290244688,-682.82,0.00021917,2]
[315932481,1709290244697,-500.0,0.00021917,2]
[315932483,1709290244707,-500.0,0.00021917,2]
[315932485,1709290244716,-500.0,0.00021917,2]
[315932487,1709290244725,-500.0,0.00021917,2]
[315932489,1709290244735,-196.83917784,0.00021917,2]
[315932491,1709290244743,-500.0,0.00021917,2]
[315932493,1709290244752,-517.25,0.00021917,2]
[315932495,1709290244761,-500.0,0.00021917,2]
[315932497,1709290244771,-500.0,0.00021917,2]
[315932499,1709290244780,-613.69,0.00021917,2]
[315932501,1709290244789,-500.0,0.00021917,2]
[315932503,1709290244798,-500.0,0.00021917,2]
[315932505,1709290244807,-500.0,0.00021917,2]
[315932507,1709290244817,-500.0,0.00021917,2]
[315932509,1709290244826,-150.0,0.00021917,2]
[315932511,1709290244836,-500.0,0.00021917,2]
[315932513,1709290244845,-500.0,0.00021917,2]
[315932515,1709290244854,-500.0,0.00021917,2]
[315932517,1709290244864,-500.0,0.00021917,2]
[315932519,1709290244874,-500.0,0.00021917,2]
[315932521,1709290244887,-775.67,0.00021917,2]
[315932523,1709290244897,-500.0,0.00021917,2]
[315932525,1709290244908,-500.0,0.00021917,2]
[315932527,1709290244919,-504.99,0.00021917,2]
[315932529,1709290244929,-500.0,0.00021917,2]
[315932531,1709290244939,-500.0,0.00021917,2]
[315932533,1709290244948,-247.37307085,0.00021917,2]
[315932535,1709290244957,-500.0,0.00021917,2]
[315932537,1709290244967,-500.0,0.00021917,2]
[315932539,1709290244977,-191.79386192,0.00021917,2]
[315932541,1709290244986,-500.0,0.00021917,2]
[315932543,1709290244996,-500.0,0.00021917,2]
[315932545,1709290245005,-549.66,0.00021917,2]
[315932547,1709290245015,-768.95,0.00021917,2]
[315932549,1709290245025,-500.0,0.00021917,2]
[315932552,1709290245034,-500.0,0.00021917,2]
[315932554,1709290245043,-500.0,0.00021917,2]
[315932556,1709290245053,-500.0,0.00021917,2]
[315932558,1709290245062,-784.54,0.00021917,2]
[315932560,1709290245072,-500.0,0.00021917,2]
[315932562,1709290245081,-500.0,0.00021917,2]
[315932564,1709290245090,-339.12,0.00021917,2]
[315932566,1709290245100,-500.0,0.00021917,2]
[315932568,1709290245109,-500.0,0.00021917,2]
[315932570,1709290245118,-502.16,0.00021917,2]
[315932572,1709290245127,-500.0,0.00021917,2]
[315932574,1709290245136,-500.0,0.00021917,2]
[315932576,1709290245146,-500.0,0.00021917,2]
[315932578,1709290245155,-1217.78,0.00021917,2]
[315932580,1709290245165,-553.61,0.00021917,2]
[315932581,1709290245174,-500.0,0.00021917,2]
[315932582,1709290245183,-500.0,0.00021917,2]
[315932583,1709290245192,-574.2,0.00021917,2]
[315932584,1709290245203,-500.0,0.00021917,2]
[315932585,1709290245213,-500.0,0.00021917,2]
[315932586,1709290245222,-500.0,0.00021917,2]
[315932587,1709290245231,-500.0,0.00021917,2]
[315932588,1709290245241,-500.0,0.00021917,2]
[315932589,1709290245251,-500.0,0.00021917,2]
[315932591,1709290245260,-500.0,0.00021917,2]
[315932593,1709290245269,-1772.99,0.00021917,2]
[315932595,1709290245279,-500.0,0.00021917,2]
[315932596,1709290245288,-500.0,0.00021917,2]
[315932597,1709290245297,-500.0,0.00021917,2]
[315932598,1709290245306,-506.55,0.00021917,2]
[315932599,1709290245316,-500.0,0.00021917,2]
[315932600,1709290245325,-500.0,0.00021917,2]
[315932601,1709290245335,-500.0,0.00021917,2]
[315932602,1709290245344,-500.0,0.00021917,2]
[315932603,1709290245354,-500.0,0.00021917,2]
[315932604,1709290245363,-500.0,0.00021917,2]
[315932605,1709290245373,-500.0,0.00021917,2]
[315932606,1709290245384,-946.45,0.00021917,2]
[315932607,1709290245393,-500.0,0.00021917,2]
[315932608,1709290245402,-500.0,0.00021917,2]
[315932609,1709290245412,-837.28,0.00021917,2]
[315932610,1709290245421,-516.08684553,0.00021917,2]
[315932611,1709290245430,-500.0,0.00021917,2]
[315932612,1709290245439,-500.0,0.00021917,2]
[315932613,1709290245450,-521.41,0.00021917,2]
[315932614,1709290245459,-500.0,0.00021917,2]
[315932615,1709290245469,-500.0,0.00021917,2]
[315932616,1709290245478,-876.49,0.00021917,2]
[315932617,1709290245488,-500.0,0.00021917,2]
[315932618,1709290245497,-500.0,0.00021917,2]
[315932619,1709290245507,-500.0,0.00021917,2]
[315932620,1709290245516,-500.0,0.00021917,2]
[315932621,1709290245527,-500.0,0.00021917,2]
[315932622,1709290245537,-500.0,0.00021917,2]
[315932623,1709290245546,-500.0,0.00021917,2]
[315932624,1709290245555,-500.0,0.00021917,2]
[315932625,1709290245565,-576.34,0.00021917,2]
[315932626,1709290245574,-500.0,0.00021917,2]
[315932627,1709290245584,-729.71,0.00021917,2]
[315932628,1709290245593,-797.85,0.00021917,2]
[315932629,1709290245602,-500.0,0.00021917,2]
[315932630,1709290245612,-500.0,0.00021917,2]
[315932631,1709290245621,-1205.58,0.00021917,2]
[315932632,1709290245631,-603.21,0.00021917,2]
[315932633,1709290245640,-500.0,0.00021917,2]
[315932634,1709290245649,-525.12,0.00021917,2]
[315932635,1709290245659,-500.0,0.00021917,2]
[315932636,1709290245668,-9774.08,0.00021917,2]
[315932637,1709290245677,-500.0,0.00021917,2]
[315932638,1709290245687,-648.98,0.00021917,2]
[315932639,1709290245697,-500.0,0.00021917,2]
[315932640,1709290245707,-594.23,0.00021917,2]
[315932641,1709290245716,-1253.27,0.00021917,2]
[315932642,1709290245725,-500.0,0.00021917,2]
[315932643,1709290245735,-585.31407035,0.00021917,2]
[315932644,1709290245744,-500.0,0.00021917,2]
[315932645,1709290245754,-680.27,0.00021917,2]
[315932646,1709290245763,-500.0,0.00021917,2]
[315932647,1709290245772,-855.2,0.00021917,2]
[315932648,1709290245781,-753.87,0.00021917,2]
[315932649,1709290245791,-1800.52,0.00021917,2]
[315932650,1709290245800,-500.0,0.00021917,2]
[315932651,1709290245810,-905.95,0.00021917,2]
[315932652,1709290245819,-500.0,0.00021917,2]
[315932653,1709290245828,-602.09,0.00021917,2]
[315932654,1709290245837,-567.45,0.00021917,2]
[315932655,1709290245847,-712.83,0.00021917,2]
[315932656,1709290245856,-500.0,0.00021917,2]
[315932657,1709290245867,-590.0948433,0.00021917,2]
[315932658,1709290245877,-1921.37,0.00021917,2]
[315932659,1709290245887,-918.33,0.00021917,2]
[315932660,1709290245896,-500.0,0.00021917,2]
[315932661,1709290245907,-566.27,0.00021917,2]
[315932662,1709290245916,-719.09,0.00021917,2]
[315932663,1709290245984,-514.21,0.00021917,2]
[315932664,1709290245994,-500.0,0.00021917,2]
[315932665,1709290246003,-1834.75,0.00021917,2]
[315932666,1709290246012,-520.64,0.00021917,2]
[315932667,1709290246021,-19287.0,0.00021917,2]
[315932668,1709290246030,-704.6,0.00021917,2]
[315932669,1709290246040,-1135.51,0.00021917,2]
[315932670,1709290246050,-3637.42,0.00021917,2]
[315932671,1709290246059,-500.0,0.00021917,2]
[315932672,1709290246069,-2032.1,0.00021917,2]
[315932673,1709290246078,-979.11,0.00021917,2]
[315932674,1709290246088,-612.61,0.00021917,2]
[315932675,1709290246097,-679.38,0.00021917,2]
[315932676,1709290246106,-996.85,0.00021917,2]
[315932677,1709290246115,-500.0,0.00021917,2]
[315932678,1709290246125,-1337.76,0.00021917,2]
[315932679,1709290246134,-505.03,0.00021917,2]
[315932680,1709290246143,-1058.81,0.00021917,2]
[315932681,1709290246153,-500.0,0.00021917,2]
[315932682,1709290246162,-500.0,0.00021917,2]
[315932683,1709290246171,-1266.87,0.00021917,2]
[315932684,1709290246180,-1338.75,0.00021917,2]
[315932685,1709290246189,-504.29,0.00021917,2]
[315932686,1709290246198,-2153.37,0.00021917,2]
[315932687,1709290246208,-500.0,0.00021917,2]
[315932688,1709290246217,-1803.64,0.00021917,2]
[315932689,1709290246226,-500.0,0.00021917,2]
[315932690,1709290246235,-500.0,0.00021917,2]
[315932691,1709290246245,-564.04,0.00021917,2]
[315932692,1709290246254,-11842.95,0.00021917,2]
[315932693,1709290246263,-249.66,0.00021917,2]
[315932694,1709290246273,-1033.45,0.00021917,2]
[315932695,1709290246282,-1875.06,0.00021917,2]
[315932696,1709290246291,-1257.24,0.00021917,2]
[315932697,1709290246301,-500.0,0.00021917,2]
[315932698,1709290246310,-500.0,0.00021917,2]
[315932699,1709290246319,-1718.93,0.00021917,2]
[315932700,1709290246328,-500.0,0.00021917,2]
[315932701,1709290246338,-500.0,0.00021917,2]
[315932702,1709290246347,-500.0,0.00021917,2]
[315932703,1709290246356,-574.26,0.00021917,2]
[315932704,1709290246365,-3698.8,0.00021917,2]
[315932705,1709290246374,-1565.55,0.00021917,2]
[315932706,1709290246384,-500.0,0.00021917,2]
[315932707,1709290246394,-1337.29,0.00021917,2]
[315932708,1709290246404,-500.0,0.00021917,2]
[315932709,1709290246413,-638.42,0.00021917,2]
[315932710,1709290246422,-1472.5,0.00021917,2]
[315932711,1709290246432,-465.9341896,0.00021917,2]
[315932712,1709290246441,-2786.63,0.00021917,2]
[315932713,1709290246451,-589.79,0.00021917,2]
[315932714,1709290246461,-500.0,0.00021917,2]
[315932715,1709290246470,-546.41,0.00021917,2]